bitfinex/quotes_ETHUSD_20250217
["timestamp","ask_amount","ask_price","bid_price","bid_amount"]
[1739768814293,2.35008641,2658.4,2658.3,12.6308734]
[1739768815116,0.005,2658.4,2658.3,12.6308734]
[1739768817796,0.7789,2659.5,2658.3,12.6308734]
[1739768818092,0.09470963,2659.4,2658.9,3.76086]
[1739768818305,0.7789,2659.5,2658.9,3.76086]
[1739768818509,0.09470963,2659.4,2659.0,0.15387538]
[1739768818805,0.7789,2659.5,2659.1,3.79825495]
[1739768819006,0.7789,2659.5,2659.2,0.39521303]
[1739768819219,0.09470963,2659.4,2659.2,0.54907684]
[1739768819425,0.09470963,2659.4,2659.3,0.15385802]
[1739768819924,0.7789,2659.5,2659.3,0.15385802]
[1739768820220,0.09470963,2659.4,2659.3,0.15385802]
[1739768820596,0.09470963,2659.4,2659.1,3.76057]
[1739768820795,0.09470963,2659.4,2659.2,0.76906769]
[1739768821206,0.09470963,2659.4,2659.3,0.13176469]
[1739768821406,0.09470963,2659.4,2659.3,3.92973934]
[1739768821642,0.7957,2659.8,2659.3,3.13176469]
[1739768822021,0.09465692,2659.7,2659.4,0.13175973]
[1739768822337,0.7957,2659.8,2659.4,0.13175973]
[1739768822539,0.09465692,2659.7,2659.4,0.13175973]
[1739768822780,3.76004,2659.6,2659.4,0.13175973]
[1739768822951,4.5558,2659.5,2659.4,0.13175973]
[1739768823432,4.65045692,2659.5,2659.4,0.13175973]
[1739768824267,5.20045692,2659.5,2659.4,0.13175973]
[1739768824473,0.7957,2658.7,2657.8,0.832]
[1739768824763,0.7957,2658.7,2658.1,0.02210331]
[1739768824969,0.09465692,2658.6,2658.1,0.40052764]
[1739768825330,3.7616,2658.5,2658.2,0.15286274]
[1739768825532,0.7957,2658.7,2658.2,0.15286274]
[1739768825743,0.09465692,2658.6,2658.2,0.15286274]
[1739768826380,3.85603692,2658.6,2658.2,0.15286274]
[1739768827244,0.09465692,2658.6,2658.2,0.15286274]
[1739768827601,3.85610692,2658.6,2658.2,0.15286274]
[1739768828644,0.09465692,2658.6,2658.2,0.15286274]
[1739768828841,3.85604692,2658.6,2658.2,0.15286274]
[1739768829242,3.76167,2658.4,2658.2,0.15286274]
[1739768829779,0.09465692,2658.3,2658.2,0.15286274]
[1739768830361,3.76153,2658.5,2658.2,0.15286274]
[1739768830661,0.09380431,2658.4,2658.2,0.15286274]
[1739768831774,3.85547431,2658.4,2658.2,0.15286274]
[1739768832090,3.85546431,2658.4,2658.2,0.15286274]
[1739768832290,4.5575,2658.3,2658.2,0.15286274]
[1739768832895,4.65130431,2658.3,2658.2,0.15286274]
[1739768834314,0.88950431,2658.3,2658.2,0.15286274]
[1739768835613,4.65130431,2658.3,2658.2,0.15286274]
[1739768836075,0.88950431,2658.3,2658.2,0.15286274]
[1739768836730,0.09380431,2658.3,2658.2,0.15286274]
[1739768837023,4.59198,2659.0,2658.2,0.15286274]
[1739768837224,0.09380431,2658.3,2658.2,0.19047076]
[1739768837448,0.8311,2659.0,2658.2,4.42276076]
[1739768837605,0.8311,2659.0,2658.4,3.76161]
[1739768837807,0.09373397,2658.9,2658.5,0.03760554]
[1739768838005,0.09373397,2658.9,2658.3,3.76168]
[1739768838318,0.09373397,2658.9,2658.8,0.7509]
[1739768838498,0.09373397,2658.9,2658.8,1.23971048]
[1739768838705,0.8311,2659.6,2658.8,1.23971048]
[1739768838906,0.8311,2659.6,2658.9,3.76081]
[1739768839248,3.75948,2660.0,2658.9,3.76081]
[1739768839249,0.09373397,2659.5,2659.1,3.0]
[1739768839392,0.09373397,2659.5,2659.2,0.0375944]
[1739768839593,0.8311,2660.0,2659.0,3.0]
[1739768839802,0.09373397,2659.4,2658.9,3.64708804]
[1739768840142,0.8311,2660.0,2659.2,6.76043]
[1739768840595,0.09373397,2659.9,2659.2,6.76049]
[1739768840789,0.09373397,2659.9,2659.2,10.52093]
[1739768840991,0.09373397,2659.9,2659.2,6.76044]
[1739768841940,0.09373397,2659.9,2659.2,6.7604]
[1739768842136,0.09373397,2659.9,2659.3,0.67604]
[1739768842636,0.09373397,2659.9,2659.2,3.0]
[1739768843025,0.09373397,2659.9,2659.0,0.4397988]
[1739768843339,3.85339397,2659.9,2659.0,0.4397988]
[1739768843535,3.85339397,2659.9,2659.1,3.0]
[1739768843536,0.09373397,2659.9,2659.1,3.0]
[1739768843696,0.09373397,2659.9,2659.1,6.76057]
[1739768843903,0.09373397,2659.9,2659.2,1.09610788]
[1739768844398,3.85331397,2659.9,2659.2,1.09610788]
[1739768844622,3.85331397,2659.9,2659.0,0.4397988]
[1739768845234,0.09373397,2659.9,2659.1,3.0]
[1739768845445,0.09373397,2659.9,2659.1,6.76066]
[1739768845955,3.85329397,2659.9,2659.0,0.4397988]
[1739768846465,0.09373397,2659.9,2659.1,0.7509]
[1739768846623,0.09373397,2659.9,2659.5,3.76002]
[1739768846828,5.34,2660.3,2659.5,0.03758979]
[1739768847065,0.09477986,2659.8,2659.7,6.7597]
[1739768847224,5.34,2660.3,2659.7,7.5106]
[1739768847731,0.09477986,2660.2,2660.0,3.75938]
[1739768847931,3.9050322,2660.8,2660.1,0.375938]
[1739768848154,0.09477986,2660.7,2660.1,0.375938]
[1739768848672,3.85331986,2660.7,2660.1,0.375938]
[1739768848876,3.75857,2660.6,2659.7,7.51069]
[1739768849163,0.1467222,2660.8,2660.0,3.75936]
[1739768849363,0.09477986,2660.7,2659.8,3.75968]
[1739768849592,0.09477986,2660.7,2659.8,3.75958]
[1739768849797,0.09477986,2660.7,2659.9,3.75953]
[1739768850068,0.09477986,2660.7,2660.0,4.511261]
[1739768850272,0.09477986,2660.7,2660.0,8.28864658]
[1739768850564,0.09477986,2660.7,2660.0,0.73236487]
[1739768850739,3.85331986,2660.7,2659.9,3.0]
[1739768850945,0.09477986,2660.7,2660.2,3.75903]
[1739768851128,0.09477986,2660.7,2660.1,3.75915]
[1739768851334,0.09477986,2660.7,2660.6,6.75855]
[1739768851540,0.1467222,2660.8,2660.7,6.7584]
[1739768852241,0.1467222,2660.8,2660.6,4.4961868]
[1739768852534,0.1467222,2660.8,2660.7,3.7584]
[1739768853486,0.1467222,2660.8,2660.7,3.79596903]
[1739768854083,0.1467222,2660.8,2660.7,3.7584]
[1739768854326,0.1467222,2660.8,2660.7,8.40415348]
[1739768855221,0.1467222,2660.8,2660.7,8.52498002]
[1739768855535,0.3775,2662.3,2661.6,3.7974]
[1739768855835,4.52015,2662.1,2661.3,0.7974]
[1739768856016,0.7637,2662.1,2661.4,0.455507]
[1739768856184,0.7637,2662.1,2661.4,4.212907]
[1739768856387,0.09564925,2662.0,2661.4,4.212827]
[1739768856685,0.09564925,2662.0,2661.5,3.75718]
[1739768856926,0.09564925,2662.0,2661.4,3.455507]
[1739768857136,0.7637,2662.4,2661.7,3.75698]
[1739768857332,0.7637,2662.4,2661.8,3.75681]
[1739768857333,0.09869667,2661.9,2661.8,3.75681]
[1739768857498,0.7637,2662.4,2661.7,3.75698]
[1739768857698,0.7637,2662.4,2661.6,3.75702]
[1739768858001,0.7637,2662.4,2661.5,4.5582457]
[1739768858002,0.09869667,2662.3,2661.7,4.58846657]
[1739768858406,0.09869667,2662.3,2661.7,4.58842657]
[1739768858733,0.7637,2662.4,2661.8,0.07835223]
[1739768858903,0.09881068,2662.2,2661.8,0.07835223]
[1739768859111,0.7637,2662.4,2661.8,0.07835223]
[1739768859311,0.09881068,2662.1,2661.8,0.54503011]
[1739768859509,0.7637,2662.4,2661.8,0.07835223]
[1739768859826,0.7637,2662.4,2661.9,0.07834929]
[1739768860019,0.09881068,2662.3,2661.9,0.07834929]
[1739768862732,0.7637,2662.4,2661.9,0.07834929]
[1739768863043,5.34,2662.8,2661.9,0.07834929]
[1739768863206,0.09881068,2662.3,2662.1,3.75635]
[1739768863408,6.1356,2662.8,2662.1,3.75635]
[1739768863409,0.7956,2662.8,2662.2,0.452775]
[1739768863811,6.1356,2663.1,2662.2,0.452775]
[1739768864121,6.1356,2663.1,2662.3,3.75606]
[1739768864493,6.1356,2663.1,2662.5,3.75583]
[1739768864701,6.1356,2663.1,2662.6,3.75566]
[1739768864899,6.1356,2663.1,2662.7,3.75554]
[1739768865120,0.005,2663.4,2662.8,0.03754779]
[1739768865335,0.005,2663.4,2662.8,0.45644878]
[1739768865926,0.005,2663.4,2662.9,0.07634282]
[1739768866442,0.005,2663.4,2663.0,0.03754226]
[1739768866734,0.005,2663.4,2662.9,0.07634282]
[1739768869540,3.75961,2663.4,2662.9,0.07634282]
[1739768869946,0.005,2663.4,2662.9,0.07634282]
[1739768870132,3.75967,2663.4,2662.9,0.07634282]
[1739768870325,0.005,2663.4,2662.9,0.07634282]
[1739768870737,0.55,2663.2,2662.9,0.07634282]
[1739768870951,0.7956,2663.3,2662.9,0.07634282]
[1739768871761,5.345,2663.4,2662.9,0.07634282]
[1739768872079,9.0996,2663.4,2662.9,0.07634282]
[1739768872358,5.345,2663.4,2662.9,0.07634282]
[1739768872715,3.75475,2663.3,2662.9,0.07634282]
[1739768872932,3.75474,2663.3,2662.9,0.07634282]
[1739768873339,9.0997,2663.4,2662.9,0.07634282]
[1739768873748,3.75478,2663.3,2662.9,0.07634282]
[1739768874135,9.0997,2663.4,2662.9,0.07634282]
[1739768874321,12.85439,2663.4,2662.9,0.07634282]
[1739768874521,3.75475,2663.3,2662.9,0.07634282]
[1739768874857,9.09969,2663.4,2662.9,0.07634282]
[1739768875057,0.10188868,2663.2,2662.9,0.07634282]
[1739768875257,9.09969,2663.4,2662.9,0.07634282]
[1739768875467,0.10188868,2663.1,2662.9,0.07634282]
[1739768875635,5.345,2663.4,2662.9,0.07634282]
[1739768875837,0.10188868,2663.0,2662.9,0.07634282]
[1739768876046,5.345,2663.4,2662.9,0.07634282]
[1739768876426,0.10191498,2663.3,2662.9,0.07634282]
[1739768876657,0.10191498,2663.3,2663.0,0.7714]
[1739768877262,0.10191498,2663.3,2663.0,4.52649]
[1739768877578,0.10191498,2663.3,2663.0,1.61096775]
[1739768877926,0.10191498,2663.3,2663.0,5.36602775]
[1739768878580,0.10191498,2663.3,2663.0,9.12110775]
[1739768878780,0.10191498,2663.3,2663.0,1.61096775]
[1739768878932,0.10191498,2663.3,2663.0,5.36611775]
[1739768879131,0.10191498,2663.3,2663.1,0.54424606]
[1739768879327,0.10191498,2663.3,2663.0,5.36611775]
[1739768879970,0.10191498,2663.3,2663.0,5.36609775]
[1739768880164,0.10191498,2663.3,2663.0,1.61096775]
[1739768880369,0.10191498,2663.3,2663.0,0.7714]
[1739768881084,0.10191498,2663.3,2663.0,4.52651]
[1739768881239,0.10191498,2663.3,2663.1,0.07302234]
[1739768883270,0.10191498,2663.3,2663.2,3.79241939]
[1739768883677,0.10191498,2663.3,2663.2,3.86543899]
[1739768883976,0.10191498,2663.3,2663.2,4.70461089]
[1739768884797,0.10191498,2663.3,2663.2,4.6670715]
[1739768885145,0.10191498,2663.3,2663.2,4.70460779]
[1739768885367,0.10191498,2663.3,2663.2,4.6670715]
[1739768885970,0.10191498,2663.3,2663.2,0.0730196]
[1739768889343,0.10191498,2663.3,2662.9,0.06718033]
[1739768889549,3.75512,2663.1,2662.9,0.06718033]
[1739768889763,0.10283483,2663.0,2662.5,0.7736]
[1739768889963,0.10283483,2663.0,2662.2,4.52987]
[1739768890251,0.10283483,2663.0,2662.3,0.452987]
[1739768890659,0.10283483,2663.0,2662.3,3.452987]
[1739768890864,0.10283483,2663.0,2662.4,0.03754937]
[1739768892151,3.85803483,2663.0,2662.3,0.03754938]
[1739768892483,0.10283483,2663.0,2662.3,3.79364938]
[1739768892687,0.10283483,2663.0,2662.4,0.75672494]
[1739768892875,0.10283483,2663.0,2662.5,0.03755017]
[1739768893254,0.10283483,2663.0,2662.4,0.75672494]
[1739768893464,0.10283483,2663.0,2662.2,7.52986]
[1739768893669,0.10283483,2663.0,2662.3,3.0]
[1739768893865,0.10283483,2663.0,2662.4,0.0375502]
[1739768894089,0.10283483,2663.0,2662.3,3.0]
[1739768894090,3.85803483,2663.0,2662.3,3.0]
[1739768894265,3.75553,2662.8,2662.2,0.7736]
[1739768894713,0.10244931,2662.7,2662.2,1.226616]
[1739768895703,0.10244931,2662.7,2662.2,0.453016]
[1739768895983,9.09531,2662.9,2662.2,0.453016]
[1739768896189,3.85797931,2662.8,2662.2,0.453016]
[1739768896385,0.10244931,2662.8,2662.2,0.453016]
[1739768896587,0.10244931,2662.8,2662.3,0.3453016]
[1739768897201,0.10244931,2662.8,2662.3,4.1013816]
[1739768897698,0.10244931,2662.8,2662.3,4.1013516]
[1739768897905,0.10244931,2662.8,2662.4,3.75589]
[1739768898089,0.10244931,2662.8,2662.7,3.75558]
[1739768898421,0.10244931,2662.8,2662.7,7.131138]
[1739768898763,0.005,2663.4,2662.9,3.75518]
[1739768899024,0.10175721,2663.3,2662.9,3.7553]
[1739768899223,0.10175721,2663.3,2662.8,3.75535]
[1739768900115,0.10175721,2663.3,2662.9,3.75529]
[1739768900317,0.10175721,2663.3,2663.0,0.751064]
[1739768900475,0.10175721,2663.3,2662.8,3.75543]
[1739768900872,0.10175721,2663.3,2662.7,7.131138]
[1739768901180,0.10175721,2663.3,2662.8,3.75542]
[1739768901395,0.10175721,2663.3,2662.8,3.75532]
[1739768901702,0.10175721,2663.3,2662.7,7.131138]
[1739768901703,0.10175721,2663.3,2662.9,3.75527]
[1739768901881,5.44175721,2663.3,2663.0,4.130647]
[1739768902088,5.44175721,2663.3,2663.0,0.375527]
[1739768904423,5.44175721,2663.3,2662.8,3.75543]
[1739768904854,0.10175721,2663.3,2662.7,4.131038]
[1739768905361,0.10175721,2663.3,2662.8,3.75533]
[1739768905850,0.10175721,2663.3,2662.9,3.7553]
[1739768906038,0.10175721,2663.3,2662.8,3.75533]
[1739768906238,0.10175721,2663.3,2662.9,0.4130888]
[1739768906910,0.10175721,2663.3,2662.7,4.131138]
[1739768907245,4.56991,2663.1,2662.4,3.75599]
[1739768907547,0.8148,2663.1,2662.5,0.03754813]
[1739768907764,0.10194995,2663.0,2662.7,3.75557]
[1739768908065,0.8198,2663.4,2662.7,3.79311611]
[1739768908366,0.10194995,2662.9,2662.7,7.51106]
[1739768908609,0.8198,2663.4,2662.8,0.751106]
[1739768908725,0.8198,2663.4,2662.8,3.75542]
[1739768909316,0.8198,2663.4,2662.7,3.75546]
[1739768909534,0.8198,2663.4,2662.7,7.51097]
[1739768909881,0.8198,2663.4,2663.0,3.75502]
[1739768910074,0.005,2663.4,2662.7,3.75547]
[1739768910217,0.005,2663.4,2662.9,3.75522]
[1739768910619,0.005,2663.4,2663.0,3.75505]
[1739768911053,0.005,2663.4,2662.9,7.5106]
[1739768911237,0.005,2663.4,2663.0,3.75516]
[1739768912080,0.005,2663.4,2662.9,3.75529]
[1739768912222,0.005,2663.4,2663.0,0.78900013]
[1739768912762,0.005,2663.4,2662.8,0.3793013]
[1739768913140,0.005,2663.4,2662.8,3.3793013]
[1739768913340,3.75963,2663.4,2662.8,3.3793013]
[1739768913844,0.005,2663.4,2662.8,4.1347213]
[1739768914045,0.005,2663.4,2663.2,3.75477]
[1739768914363,0.005,2663.4,2663.3,0.375477]
[1739768914566,0.005,2663.4,2663.3,4.130217]
[1739768914874,0.10745817,2663.4,2663.3,4.130217]
[1739768915475,0.10745817,2663.4,2663.3,4.16775356]
[1739768915663,0.10745817,2663.4,2663.3,4.130217]
[1739768915836,0.005,2663.4,2663.3,4.130217]
[1739768916388,0.10745817,2663.4,2663.3,4.130217]
[1739768916544,0.10745817,2663.4,2663.3,4.1677526]
[1739768918543,0.10745817,2663.4,2663.3,4.9623526]
[1739768918746,0.005,2663.4,2663.3,7.9623526]
[1739768918969,0.005,2663.4,2663.3,7.924817]
[1739768921402,0.005,2663.4,2663.3,8.474817]
[1739768923088,0.1467222,2663.5,2663.4,7.30459]
[1739768923296,0.1467222,2663.5,2663.4,13.6744131]
[1739768923496,0.1467222,2663.5,2663.4,13.63688938]
[1739768924547,0.1467222,2663.5,2663.4,14.11393655]
[1739768924743,0.10919939,2663.5,2663.4,13.63688938]
[1739768928390,0.10919939,2663.5,2663.4,13.73688938]
[1739768932231,9.39e-06,2663.5,2663.4,13.73688938]
[1739768933212,9.39e-06,2663.5,2663.4,13.63688938]
[1739768935354,9.39e-06,2663.5,2663.4,13.08688938]
[1739768935492,9.39e-06,2663.5,2663.4,9.4531477]
[1739768936042,9.39e-06,2663.5,2663.4,13.08688938]
[1739768940656,9.39e-06,2663.5,2663.4,8.6585477]
[1739768944211,9.39e-06,2663.5,2663.4,9.9703477]
[1739768946143,9.39e-06,2663.5,2663.4,11.26460586]
[1739768946351,0.7653,2665.1,2664.4,3.7618]
[1739768946572,0.7653,2665.1,2664.6,3.75289]
[1739768946864,0.10145366,2665.0,2664.9,3.75248]
[1739768947474,0.10145366,2665.0,2664.8,3.75261]
[1739768947673,0.10145366,2665.0,2664.9,3.75248]
[1739768948073,0.10145366,2665.0,2664.8,3.7525]
[1739768948381,0.10145366,2665.0,2664.9,4.12773]
[1739768948532,0.10145366,2665.0,2664.9,7.16524436]
[1739768948872,0.7653,2665.4,2665.1,3.75208]
[1739768949023,0.7653,2665.4,2665.3,3.75192]
[1739768949421,0.86724434,2665.4,2665.1,3.75208]
[1739768949643,0.7653,2665.4,2665.3,3.75192]
[1739768950070,0.10194434,2665.4,2665.3,3.75192]
[1739768950731,0.7653,2665.7,2665.4,3.75171]
[1739768950930,0.7653,2666.1,2665.7,3.75127]
[1739768951131,0.7653,2666.1,2665.5,0.7618]
[1739768951330,0.7653,2666.1,2665.9,3.75099]
[1739768951532,0.7653,2666.1,2665.9,3.75097]
[1739768951773,0.1467222,2666.2,2665.6,0.0375043]
[1739768951974,0.1467222,2666.2,2665.9,3.75097]
[1739768952122,0.1467222,2666.2,2666.0,3.75083]
[1739768952316,0.1467222,2666.2,2666.1,3.75079]
[1739768953760,0.1467222,2666.2,2666.1,3.78828618]
[1739768953981,0.1467222,2666.2,2665.8,7.38491168]
[1739768953982,0.1467222,2666.2,2665.8,3.0]
[1739768954198,0.1467222,2666.2,2665.6,0.4433046]
[1739768954199,0.7889,2666.1,2665.6,0.4433046]
[1739768954348,0.7889,2666.1,2665.0,0.7861]
[1739768954690,0.7889,2666.1,2665.4,3.75169]
[1739768954894,0.7889,2666.1,2665.4,4.126859]
[1739768955071,0.7889,2666.1,2665.4,0.375169]
[1739768955390,0.7889,2666.1,2665.9,3.75101]
[1739768955540,0.7889,2666.1,2665.9,3.75099]
[1739768955938,0.7889,2666.1,2666.0,3.75093]
[1739768956154,0.1467222,2666.2,2666.1,3.75079]
[1739768956372,0.1467222,2666.2,2666.1,4.500962]
[1739768956885,0.1467222,2666.2,2666.1,7.500962]
[1739768957782,0.1467222,2666.2,2666.1,11.92080368]
[1739768958370,0.1467222,2666.2,2666.1,12.47080368]
[1739768958688,0.1467222,2666.2,2666.1,13.05218476]
[1739768960187,0.1467222,2666.2,2666.1,13.53666331]
[1739768960503,2.2e-06,2666.2,2666.1,13.53666331]
[1739768960682,2.2e-06,2666.2,2666.1,13.58896437]
[1739768961001,2.2e-06,2666.2,2666.1,14.27344292]
[1739768961347,2.2e-06,2666.2,2666.1,13.73666331]
[1739768962504,0.7889,2668.1,2667.2,0.7861]
[1739768962647,0.7889,2668.1,2667.7,3.74843]
[1739768962847,0.7889,2668.1,2667.8,4.123173]
[1739768963051,0.10577902,2668.0,2667.8,4.123173]
[1739768963447,0.10577902,2668.0,2667.9,3.74826]
[1739768963853,0.7889,2668.1,2667.8,4.123243]
[1739768964406,0.7889,2668.1,2667.8,3.374843]
[1739768964555,0.7889,2668.1,2667.9,0.7123373]
[1739768964956,0.10577902,2668.0,2667.9,0.7123373]
[1739768965190,0.10577902,2668.0,2667.7,3.74847]
[1739768965352,0.10577902,2668.0,2667.6,3.0]
[1739768965552,0.10577902,2668.0,2667.8,6.74838]
[1739768965799,0.7889,2668.1,2667.8,6.74838]
[1739768966148,0.7889,2668.1,2668.0,3.0]
[1739768966386,0.7889,2668.1,2668.0,3.974824]
[1739768966588,0.7889,2668.1,2668.0,3.0]
[1739768966770,0.7889,2668.1,2667.9,3.0]
[1739768966983,0.89467902,2668.1,2667.7,3.74852]
[1739768967165,0.7889,2667.6,2666.6,0.7861]
[1739768967366,0.7889,2667.6,2667.3,3.74899]
[1739768967703,0.31,2668.4,2667.7,3.74844]
[1739768967704,0.7889,2667.9,2667.7,3.74844]
[1739768968006,0.7889,2667.9,2667.8,3.0]
[1739768968207,0.7777,2668.3,2667.9,3.0]
[1739768968499,0.7777,2668.3,2667.8,3.0]
[1739768968808,0.7777,2668.3,2667.9,0.674844]
[1739768969089,0.7777,2668.3,2667.9,4.423094]
[1739768969888,0.7777,2668.3,2667.9,7.423014]
[1739768970692,0.7777,2668.3,2667.9,0.674844]
[1739768970891,0.7777,2668.3,2667.9,4.423014]
[1739768971069,0.7777,2668.3,2668.0,0.4423014]
[1739768971591,0.7777,2668.3,2667.9,0.674844]
[1739768971890,0.7777,2668.3,2667.7,3.0]
[1739768972050,0.7777,2668.3,2667.5,3.74877]
[1739768972252,0.7777,2668.3,2667.4,0.374899]
[1739768972477,0.7777,2668.3,2667.5,0.0374765]
[1739768972660,0.7777,2668.3,2667.9,3.74818]
[1739768972872,0.7777,2668.3,2667.8,3.74833]
[1739768973114,0.7777,2668.3,2667.9,3.0]
[1739768973692,0.7777,2668.3,2667.7,3.74848]
[1739768973898,0.7777,2668.3,2667.9,3.0]
[1739768975100,0.7777,2668.3,2667.8,0.374848]
[1739768975310,0.005,2668.4,2667.9,4.50175]
[1739768975603,0.005,2668.4,2668.2,3.74783]
[1739768975767,0.005,2668.4,2668.2,7.49559]
[1739768975966,0.005,2668.4,2668.3,1.049559]
[1739768976168,0.005,2668.4,2668.3,7.797259]
[1739768976595,0.005,2668.4,2668.3,4.049559]
[1739768976823,0.005,2668.4,2668.3,7.797259]
[1739768977113,0.7827,2668.4,2668.3,4.049559]
[1739768977267,0.7827,2668.4,2668.3,3.0]
[1739768977467,0.89068266,2668.4,2668.3,3.0]
[1739768978085,0.11298266,2668.4,2668.3,3.0]
[1739768979200,0.89068266,2668.4,2667.8,0.374848]
[1739768979405,0.89068266,2668.4,2667.4,3.0]
[1739768979608,0.89068266,2668.4,2667.3,0.7536]
[1739768979872,0.10817491,2668.3,2667.8,3.74831]
[1739768980094,0.10817491,2668.3,2667.8,3.74838]
[1739768980296,0.7777,2668.2,2667.8,3.74838]
[1739768980501,0.7777,2668.2,2667.8,0.374838]
[1739768980718,0.10815744,2668.1,2667.7,3.74851]
[1739768981013,0.10815744,2668.1,2667.5,3.7487]
[1739768981472,0.10815744,2668.1,2667.4,3.0]
[1739768981674,0.10815744,2668.1,2667.5,3.74882]
[1739768981889,0.10815744,2668.1,2667.6,3.0]
[1739768982097,0.10815744,2668.1,2667.7,4.423325]
[1739768982313,0.7777,2668.0,2667.6,3.0]
[1739768982511,0.7777,2668.0,2667.2,3.74919]
[1739768982512,0.7777,2667.9,2667.2,3.74919]
[1739768982816,0.7777,2667.9,2667.3,3.0]
[1739768983112,0.10764178,2667.8,2667.3,3.0]
[1739768983293,0.10764178,2667.8,2667.4,0.674916]
[1739768983920,0.10764178,2667.8,2667.3,3.7491]
[1739768984123,0.10764178,2667.8,2667.1,3.78681153]
[1739768984427,0.10764178,2667.8,2667.6,3.7486]
[1739768984612,0.10764178,2667.8,2667.7,3.0]
[1739768984818,0.10764178,2667.8,2667.7,6.74854]
[1739768985043,0.10764178,2667.8,2667.7,1.049714]
[1739768986417,0.10764178,2667.8,2667.4,3.0]
[1739768986620,0.10764178,2667.8,2667.3,3.0]
[1739768986835,0.10764178,2667.8,2667.3,6.74905]
[1739768987137,0.10764178,2667.8,2667.1,3.74939]
[1739768987343,0.10764178,2667.8,2667.6,3.0]
[1739768987546,0.10764178,2667.8,2667.6,3.674868]
[1739768988106,0.10764178,2667.8,2666.7,3.74989]
[1739768988434,0.10764178,2667.8,2667.2,6.74921]
[1739768989322,0.10764178,2667.8,2667.1,3.74936]
[1739768989707,0.10764178,2667.8,2667.2,3.0]
[1739768990436,0.10764178,2667.8,2667.2,3.74921]
[1739768991811,0.10764178,2667.8,2667.3,0.674921]
[1739768992555,0.10764178,2667.8,2667.1,6.74936]
[1739768993123,0.8214,2667.5,2666.7,3.74985]
[1739768993359,0.8214,2667.4,2666.0,0.7781]
[1739768993538,0.8214,2667.1,2666.3,3.75041]
[1739768993738,0.8214,2667.1,2666.4,3.375041]
[1739768994053,0.10627778,2667.0,2666.4,3.375041]
[1739768994426,0.10627778,2667.0,2666.4,0.375041]
[1739768994627,0.8214,2666.9,2666.4,0.375041]
[1739768994824,4.57107,2666.9,2666.0,3.75082]
[1739768995024,0.8214,2666.9,2665.7,0.7781]
[1739768995366,3.74994,2666.8,2665.7,4.52941]
[1739768995579,0.8214,2666.5,2665.7,3.75135]
[1739768995716,0.8214,2666.5,2665.5,0.39193433]
[1739768995717,0.8214,2666.3,2665.5,3.75154]
[1739768995924,0.8214,2666.3,2665.7,6.75131]
[1739768996146,0.8214,2666.3,2665.7,3.0]
[1739768996347,0.8214,2666.3,2665.6,3.75141]
[1739768996553,0.8214,2666.3,2665.4,4.52982]
[1739768996825,0.8214,2666.3,2665.7,3.75125]
[1739768997025,0.8214,2666.3,2665.8,4.501472]
[1739768997230,0.8214,2666.3,2665.8,0.750262]
[1739768997427,0.10574414,2666.2,2665.8,0.750262]
[1739768997971,0.10574414,2666.1,2665.9,3.0]
[1739768998127,0.8214,2666.3,2665.8,0.750262]
[1739768998327,0.10574414,2666.0,2665.9,3.3750262]
[1739768998579,0.8214,2666.3,2665.9,3.3750262]
[1739768998751,0.10574414,2666.0,2665.9,3.3750262]
[1739768998959,0.8214,2666.3,2665.9,3.3750262]
[1739768999158,0.10574414,2666.0,2665.9,3.3750262]
[1739768999360,0.8214,2666.3,2665.9,3.3750262]
[1739768999567,0.10574414,2666.0,2665.9,3.3750262]
[1739768999773,0.8214,2666.3,2665.9,3.3750262]
[1739768999975,0.10574414,2666.0,2665.9,3.3750262]
[1739769000272,0.8214,2666.3,2665.8,0.750262]
[1739769000273,0.8214,2666.3,2665.8,3.75113]
[1739769000434,0.10535907,2666.0,2665.8,3.75113]
[1739769000633,0.8214,2666.3,2665.7,3.75126]
[1739769000859,0.8214,2666.3,2665.1,4.14667084]
[1739769000860,0.10535907,2665.9,2665.1,4.14667084]
[1739769001066,0.8214,2666.3,2665.8,3.0]
[1739769001246,0.8214,2666.3,2666.1,3.7507]
[1739769001644,0.8214,2666.3,2665.9,6.75099]
[1739769001845,0.09799359,2666.2,2665.9,6.75099]
[1739769002061,0.09799359,2666.2,2666.1,6.75079]
[1739769002329,1.0954,2667.1,2666.4,3.75027]
[1739769002549,3.74953,2667.0,2666.4,0.375027]
[1739769002744,0.7954,2666.8,2666.1,3.0]
[1739769002978,4.54542,2666.7,2666.1,3.0]
[1739769003461,0.7954,2666.7,2666.1,3.0]
[1739769003663,4.54579,2666.4,2665.6,3.75137]
[1739769003892,4.54579,2666.4,2665.6,0.825762]
[1739769004038,3.75052,2666.3,2665.6,0.825762]
[1739769004238,3.75052,2666.3,2665.5,3.0]
[1739769004239,0.7954,2666.1,2665.2,5.00872708]
[1739769004439,0.7954,2666.1,2665.2,1.25676708]
[1739769004750,0.7954,2666.1,2665.5,6.75164]
[1739769004935,0.7954,2666.1,2665.4,3.75177]
[1739769005575,0.7954,2666.1,2665.4,7.50347]
[1739769005847,0.7954,2666.1,2665.5,4.501957]
[1739769006072,0.7954,2666.1,2665.6,3.75141]
[1739769006375,0.7954,2666.1,2665.7,3.75133]
[1739769006581,0.7954,2666.4,2665.7,3.7513]
[1739769006740,0.7954,2666.4,2666.1,7.50143]
[1739769007083,0.7954,2666.4,2666.2,3.75054]
[1739769007777,0.7954,2666.4,2666.1,3.75076]
[1739769007949,0.7954,2666.4,2666.2,3.75064]
[1739769008357,0.7954,2666.4,2666.0,3.75086]
[1739769008539,0.7954,2666.4,2666.0,0.795256]
[1739769008738,0.7954,2666.4,2665.8,0.45058]
[1739769008739,0.09424504,2666.3,2665.9,3.751]
[1739769008979,0.09424504,2666.3,2665.8,0.45058]
[1739769009183,0.09424504,2666.3,2666.0,3.75084]
[1739769009365,0.09424504,2666.3,2665.1,0.03750508]
[1739769009366,0.09424504,2666.3,2666.2,3.75065]
[1739769009881,0.7954,2667.5,2666.6,3.75009]
[1739769010042,1.1708,2667.5,2666.8,3.74968]
[1739769010381,0.09424504,2667.4,2666.8,3.74968]
[1739769010572,0.09424504,2667.4,2667.0,3.74952]